fUSD/lending_fUSD_20240223
["ID","MTS","AMOUNT","RATE_DAILY","PERIOD"]
[314991901,1708717844446,-164.64,0.00032877,2]
[314991902,1708717844455,-250.0,0.00032877,2]
[314991903,1708717844465,-150.0,0.00032877,2]
[314991904,1708717844474,-172.98,0.00032877,2]
[314991905,1708717844484,-8000.0,0.000329,2]
[314991906,1708717844493,-1159.3,0.00032938,2]
[314991907,1708717844503,-151.0,0.00032948,4]
[314991908,1708717844512,-950.0,0.00033,3]
[314991909,1708717844522,-199.0,0.00033,2]
[314991910,1708717844531,-158.69,0.00033126,2]
[314991911,1708717844541,-203.0,0.00033187,2]
[314991912,1708717844551,-10848.65486336,0.00033196,2]
[314991913,1708717844561,-2000.0,0.000332,2]
[314991914,1708717844574,-22609.59851198,0.00033225,2]
[314991915,1708717844583,-153.68,0.000334,2]
[314991916,1708717844593,-153.68,0.000334,2]
[314991917,1708717844602,-618.7,0.00033459,2]
[314991918,1708717844611,-1845.7,0.000335,2]
[314991919,1708717844621,-1845.7,0.000335,2]
[314991920,1708717844631,-1845.7,0.000335,2]
[314991921,1708717844640,-1845.7,0.000335,2]
[314991922,1708717844651,-1845.7,0.000335,2]
[314991923,1708717844660,-1845.7,0.000335,2]
[314991924,1708717844670,-1845.7,0.000335,2]
[314991925,1708717844679,-1845.7,0.000335,2]
[314991926,1708717844689,-1845.7,0.000335,2]
[314991927,1708717844699,-1845.7,0.000335,2]
[314991928,1708717844708,-1845.7,0.000335,2]
[314991929,1708717844717,-1845.7,0.000335,2]
[314991930,1708717844726,-1845.7,0.000335,2]
[314991931,1708717844735,-1845.7,0.000335,2]
[314991932,1708717844745,-1845.7,0.000335,2]
[314991933,1708717844755,-1845.7,0.000335,2]
[314991934,1708717844764,-1845.7,0.000335,2]
[314991935,1708717844774,-1845.7,0.000335,2]
[314991936,1708717844783,-1845.7,0.000335,2]
[314991937,1708717844792,-1845.7,0.000335,2]
[314991938,1708717844802,-1283.87206847,0.00033554,6]
[314991939,1708717844811,-151.0,0.0003362,2]
[314991940,1708717844820,-157.0,0.00033721,2]
[314991941,1708717844829,-150.0,0.00033742,2]
[314991942,1708717844838,-1147.34847841,0.00033777,4]
[314991943,1708717844848,-300.48,0.0003383,2]
[314991944,1708717844857,-182.0,0.000339,7]
[314991946,1708717844867,-152.69869984,0.000339,2]
[314991948,1708717844876,-829.3,0.0003394,2]
[314991950,1708717844885,-3251.88597453,0.00033971,2]
[314991952,1708717844895,-150.01655976,0.00034022,7]
[314991955,1708717844904,-159.29487323,0.00034029,7]
[314991957,1708717844913,-225.41504121,0.00034056,7]
[314991958,1708717844922,-371.01632554,0.00034111,2]
[314991960,1708717844932,-158.69,0.00034122,2]
[314991962,1708717844941,-150.01655976,0.00034124,7]
[314991964,1708717844950,-150.01655976,0.0003414,7]
[314991966,1708717844960,-800.0,0.00034147,2]
[314991968,1708717844969,-151.79747982,0.00034158,7]
[314991969,1708717844978,-1231.0,0.00034165,2]
[314991970,1708717844987,-849.0,0.00034165,2]
[314991971,1708717844996,-252.216,0.00034165,2]
[314991972,1708717845005,-447.413,0.00034165,2]
[314991973,1708717845014,-150.0,0.00034165,2]
[314991974,1708717845024,-151.79747982,0.00034178,7]
[314991975,1708717845034,-1420296.11371552,0.000342,4]
[314991976,1708717845043,-8000.0,0.000342,2]
[314991977,1708717845053,-150.01655976,0.00034211,7]
[314991978,1708717845062,-158.44336474,0.0003423,7]
[314991979,1708717845072,-159.39088988,0.00034271,7]
[314991980,1708717845082,-160.49481863,0.00034277,7]
[314991981,1708717845091,-297.66,0.00034278,10]
[314991982,1708717845101,-156.30526138,0.00034288,7]
[314991983,1708717845111,-225.41504121,0.00034293,7]
[314991984,1708717845121,-153.50007694,0.00034294,7]
[314991985,1708717845130,-225.41504121,0.00034299,7]
[314991986,1708717845140,-151.79747982,0.00034313,7]
[314991987,1708717845149,-332.81242251,0.0003432,2]
[314991988,1708717845160,-163.70167317,0.00034324,7]
[314991989,1708717845169,-267.94345461,0.00034338,2]
[314991990,1708717845179,-151.79747982,0.00034348,7]
[314991991,1708717845189,-156.09,0.00034349,10]
[314991992,1708717845199,-151.79747982,0.00034359,7]
[314991993,1708717845209,-225.41504121,0.00034366,7]
[314991994,1708717845218,-158.00337685,0.00034395,7]
[314991995,1708717845227,-10848.65486336,0.00034397,2]
[314991996,1708717845236,-248.05,0.0003441,10]
[314991997,1708717845249,-151.79747982,0.00034412,7]
[314991998,1708717845259,-150.01655976,0.00034416,7]
[314991999,1708717845269,-460.53930124,0.0003442,2]
[314992000,1708717845278,-173.1772457,0.0003442,2]
[314992001,1708717845287,-159.3771463,0.0003442,23]
[314992002,1708717845297,-225.41504121,0.00034438,7]
[314992003,1708717845307,-225.41504121,0.00034447,7]
[314992004,1708717845316,-150.01655976,0.00034459,7]
[314992005,1708717845325,-225.41504121,0.00034462,7]
[314992006,1708717845335,-151.79747982,0.00034466,7]
[314992007,1708717845344,-156.35719251,0.00034493,7]
[314992008,1708717845354,-159.51672722,0.00034497,7]
[314992009,1708717845363,-225.41504121,0.00034503,7]
[314992010,1708717845372,-151.79747982,0.00034517,7]
[314992011,1708717845381,-4560.832641,0.0003452,2]
[314992012,1708717845390,-1547.297326,0.0003452,2]
[314992013,1708717845399,-77077.103107,0.0003452,2]
[314992014,1708717845409,-10000.0,0.00034521,2]
[314992015,1708717845418,-150.0,0.00034548,10]
[314992016,1708717845427,-159.51672722,0.0003455,7]
[314992017,1708717845437,-1159.3,0.00034581,2]
[314992018,1708717845446,-151.79747982,0.00034599,7]
[314992019,1708717845456,-150.0,0.00034607,2]
[314992020,1708717845465,-160.49481863,0.00034617,7]
[314992021,1708717845475,-167.02514081,0.00034622,7]
[314992022,1708717845484,-156.57354395,0.00034629,7]
[314992023,1708717845493,-156.57354395,0.00034643,7]
[314992024,1708717845502,-151.79747982,0.00034673,7]
[314992025,1708717845511,-151.54644394,0.00034699,7]
[314992026,1708717845521,-158.44336474,0.00034712,7]
[314992027,1708717845530,-158.44336474,0.00034717,7]
[314992028,1708717845539,-154.98329938,0.00034723,7]
[314992029,1708717845549,-152.0,0.00034753,3]
[314992030,1708717845559,-225.41504121,0.00034758,7]
[314992031,1708717845568,-6841.248962,0.00034794,2]
[314992032,1708717845579,-2320.945989,0.00034794,2]
[314992033,1708717845588,-115615.65466,0.00034794,2]
[314992034,1708717845597,-225.41504121,0.00034836,7]
[314992035,1708717845609,-154.02083881,0.00034842,7]
[314992036,1708717845618,-151.79747982,0.00034846,7]
[314992037,1708717845628,-153.33262733,0.00034864,7]
[314992038,1708717845637,-159.29487323,0.00034874,7]
[314992039,1708717845648,-200.0,0.000349,8]
[314992040,1708717845657,-4838.42865533,0.000349,2]
[314992041,1708717845666,-4838.4286553,0.000349,2]
[314992042,1708717845675,-4838.4286553,0.000349,2]
[314992043,1708717845684,-1283.87206847,0.0003491,7]
[314992044,1708717845694,-150.0,0.0003493,2]
[314992045,1708717845703,-179.62475355,0.0003493,2]
[314992046,1708717845712,-9121.665282,0.00034931,2]
[314992047,1708717845721,-3094.594652,0.00034931,2]
[314992048,1708717845730,-154154.206214,0.00034931,2]
[314992049,1708717845739,-151.79747982,0.00034963,7]
[314992050,1708717845749,-155.76031538,0.00034977,7]
[314992051,1708717845757,-586.90975074,0.00035,4]
[314992052,1708717845767,-229.20433756,0.00035,7]
[314992053,1708717845776,-155.20925086,0.00035,4]
[314992054,1708717845786,-1000.0,0.00035,3]
[314992055,1708717845795,-168.0,0.00035,2]
[314992056,1708717845805,-94159.0,0.00035,5]
[314992057,1708717845814,-19753.66775138,0.00035,2]
[314992058,1708717845823,-155.14487318,0.00035006,7]
[314992059,1708717845874,-225.41504121,0.00035017,7]
[314992060,1708717845884,-156.57354395,0.00035022,7]
[314992061,1708717845893,-150.01655976,0.00035039,7]
[314992062,1708717845902,-156.30526138,0.00035044,7]
[314992063,1708717845911,-500.0,0.00035046,10]
[314992064,1708717845920,-11402.081603,0.00035068,2]
[314992065,1708717845929,-3868.243315,0.00035068,2]
[314992066,1708717845938,-192692.757767,0.00035068,2]
[314992067,1708717845947,-225.41504121,0.00035074,7]
[314992068,1708717845956,-157.0,0.0003509,2]
[314992069,1708717845966,-5010.92,0.000351,2]
[314992070,1708717845975,-225.41504121,0.00035112,7]
[314992071,1708717845984,-153.33262733,0.00035115,7]
[314992072,1708717845993,-158.69,0.00035118,2]
[314992073,1708717846002,-198.0,0.00035131,5]
[314992074,1708717846012,-154.98329938,0.00035154,7]
[314992075,1708717846021,-153.50007695,0.00035154,7]
[314992076,1708717846030,-225.41504121,0.00035167,7]
[314992078,1708717846040,-162.29119657,0.00035191,7]
[314992079,1708717846049,-151.79747982,0.00035191,7]
[314992080,1708717846058,-156.30526138,0.00035198,7]
[314992081,1708717846068,-153.68,0.000352,3]
[314992082,1708717846077,-153.68,0.000352,3]
[314992083,1708717846086,-153.68,0.000352,3]
[314992084,1708717846096,-153.68,0.000352,3]
[314992085,1708717846105,-445.0,0.000352,2]
[314992086,1708717846114,-155.85963337,0.00035205,7]
[314992087,1708717846123,-225.41504121,0.00035221,7]
[314992088,1708717846133,-4838.4286553,0.0003523,2]
[314992089,1708717846142,-430.7049708,0.0003524,10]
[314992090,1708717846151,-225.41504121,0.00035244,7]
[314992091,1708717846162,-155.14487318,0.00035244,7]
[314992092,1708717846172,-225.41504121,0.00035248,7]
[314992093,1708717846181,-225.41504121,0.00035254,7]
[314992094,1708717846192,-159.39088988,0.00035258,7]
[314992095,1708717846201,-225.41504121,0.00035267,7]
[314992097,1708717846210,-156.30526138,0.0003527,7]
[314992098,1708717846220,-151.79747982,0.00035271,7]
[314992099,1708717846230,-3251.88597453,0.00035278,2]
[314992100,1708717846239,-151.79747982,0.00035298,7]
[314992101,1708717846248,-156.30526138,0.00035299,7]
[314992102,1708717846257,-1845.7,0.000353,3]
[314992103,1708717846267,-1845.7,0.000353,3]
[314992104,1708717846276,-1845.7,0.000353,3]
[314992105,1708717846285,-1845.7,0.000353,3]
[314992106,1708717846294,-1845.7,0.000353,3]
[314992107,1708717846303,-1845.7,0.000353,3]
[314992108,1708717846313,-1845.7,0.000353,3]
[314992109,1708717846322,-1845.7,0.000353,3]
[314992110,1708717846330,-1845.7,0.000353,3]
[314992111,1708717846339,-1845.7,0.000353,3]
[314992112,1708717846348,-1845.7,0.000353,3]
[314992113,1708717846357,-1845.7,0.000353,3]
[314992114,1708717846366,-1845.7,0.000353,3]
[314992115,1708717846375,-1845.7,0.000353,3]
[314992116,1708717846385,-1845.7,0.000353,3]
[314992117,1708717846394,-1845.7,0.000353,3]
[314992118,1708717846403,-1845.7,0.000353,3]
[314992119,1708717846412,-1845.7,0.000353,3]
[314992120,1708717846421,-1845.7,0.000353,3]
[314992121,1708717846431,-1845.7,0.000353,3]
[314992122,1708717846441,-160.49481863,0.00035305,7]
[314992123,1708717846450,-164.64,0.00035312,2]
[314992124,1708717846458,-172.98,0.00035312,2]
[314992125,1708717846468,-15962.914244,0.00035342,2]
[314992126,1708717846477,-5415.540642,0.00035342,2]
[314992127,1708717846486,-269769.860874,0.00035342,2]
[314992128,1708717846495,-156.30526138,0.0003535,7]
[314992129,1708717846504,-225.41504121,0.00035357,7]
[314992130,1708717846513,-156.30526138,0.00035374,7]
[314992131,1708717846522,-156.57354395,0.00035394,7]
[314992132,1708717846531,-156.30526138,0.00035395,7]
[314992133,1708717846541,-157.08374947,0.00035405,7]
[314992134,1708717846550,-156.57354395,0.00035414,7]
[314992135,1708717846561,-150.01655976,0.00035418,7]
[314992136,1708717846572,-150.0,0.00035472,2]
[314992137,1708717846582,-151.79747982,0.00035497,7]
[314992138,1708717846591,-164.08227917,0.0003552,2]
[314992139,1708717846600,-225.41504121,0.00035528,7]
[314992140,1708717846610,-156.30526138,0.00035533,7]
[314992141,1708717846619,-151.79747982,0.00035539,7]
[314992142,1708717846628,-150.01655976,0.00035555,7]
[314992143,1708717846637,-159.3771463,0.00035559,25]
[314992144,1708717846648,-300.48,0.0003556,2]
[314992145,1708717846657,-156.30526138,0.00035575,7]
[314992146,1708717846666,-225.41504121,0.00035578,7]
[314992147,1708717846675,-151.79747982,0.00035582,7]
[314992148,1708717846685,-150.0,0.00035588,2]
[314992149,1708717846694,-179.62475355,0.00035588,2]
[314992150,1708717846702,-18243.330565,0.00035589,2]
[314992151,1708717846711,-140283.69152905,0.00035589,2]
[314992155,1708717846897,-654.70682192,0.00035589,2]
[314992156,1708717846909,-2192.10754396,0.00035589,2]
[314992157,1708717846931,-500.0,0.00029314,2]
[314992158,1708717846941,-240.32413611,0.00035589,2]
[314992159,1708717847026,-500.0,0.00029313,2]
[314992160,1708717847035,-500.0,0.0002945,2]
[314992161,1708717847045,-500.0,0.00029587,2]
[314992162,1708717847054,-500.0,0.00029724,2]
[314992163,1708717847064,-500.0,0.00029861,2]
[314992164,1708717847073,-500.0,0.00029998,2]
[314992165,1708717847084,-500.0,0.00030135,2]
[314992166,1708717847093,-155.07,0.00030272,2]
[314992167,1708717847101,-5641.88660436,0.000327,2]
[314992168,1708717847111,-147440.21075769,0.00035589,2]
[314992169,1708717847122,-306.58914448,0.00035589,2]
[314992170,1708717847134,-1600.65,0.00035589,2]
[314992171,1708717847145,-690.03922118,0.00035589,2]
[314992172,1708717847189,-377.63072068,0.00035589,2]
[314992173,1708717847292,-151.0,0.00030106,2]
[314992174,1708717847301,-151.0,0.00030106,2]
[314992175,1708717847310,-5641.88660436,0.000327,2]
[314992176,1708717847319,-4587.07479564,0.00035589,2]
[314992177,1708717847331,-3952.57406354,0.00035589,2]
[314992178,1708717847346,-999.9,0.00029776,2]
[314992179,1708717847356,-4462.87545207,0.00035589,2]
[314992180,1708717847368,-1519.93824168,0.00035589,2]
[314992181,1708717847377,-500.0,0.00035594,10]
[314992182,1708717847386,-2731.50178829,0.00035598,2]
[314992183,1708717847429,-601.62044776,0.00029313,2]
[314992184,1708717847439,-999.9,0.0003142,2]
[314992185,1708717847448,-999.9,0.00033064,2]
[314992186,1708717847458,-8117.15307507,0.00035598,2]
[314992187,1708717847467,-153.31768893,0.00035599,7]
[314992188,1708717847476,-8000.0,0.000356,2]
[314992189,1708717847485,-151.79747982,0.00035625,7]
[314992190,1708717847494,-150.01655976,0.00035632,7]
[314992191,1708717847503,-225.41504121,0.00035669,7]
[314992192,1708717847512,-3700.96,0.000357,7]
[314992193,1708717847521,-150.01655976,0.00035705,7]
[314992194,1708717847530,-155.7603154,0.00035707,7]
[314992195,1708717847539,-618.7,0.00035723,2]
[314992196,1708717847549,-10000.0,0.00035798,2]
[314992197,1708717847559,-150.01655976,0.0003583,7]
[314992198,1708717847570,-151.79747982,0.00035854,7]
[314992199,1708717847580,-5800.0,0.00035873,2]
[314992200,1708717847589,-35803.82607654,0.00035881,3]
[314992204,1708717870222,43202.08702065,0.00023,2]
[314992205,1708717870245,1314.0,0.00023,2]
[314992206,1708717870272,12880.10627682,0.00023,2]
[314992207,1708717870300,906.29392687,0.00023,2]
[314992208,1708717870324,6107037.46669381,0.00023,2]
[314992209,1708717893003,150.0,0.0001,2]
[314992210,1708717915474,150.0,0.0002276,2]
[314992211,1708717915494,150.0,0.0002276,2]
[314992212,1708717915514,150.0,0.0002276,2]
[314992213,1708717915534,150.0,0.0002276,2]
[314992214,1708717915554,150.0,0.0002276,2]
[314992215,1708717915574,150.0,0.0002276,2]
[314992216,1708717915596,150.0,0.0002276,2]
[314992217,1708717915617,150.0,0.0002276,2]
[314992218,1708717915636,150.0,0.0002276,2]
[314992219,1708717915656,150.0,0.0002276,2]
[314992220,1708717915676,150.0,0.0002276,2]
[314992221,1708717915696,150.0,0.0002276,2]
[314992222,1708717915716,150.0,0.0002276,2]
[314992223,1708717915736,150.0,0.0002276,2]
[314992224,1708717915756,150.0,0.0002276,2]
[314992225,1708717915776,150.0,0.0002276,2]
[314992226,1708717915795,221702.44551826,0.0002276,2]
[314992227,1708717916082,150.0,6.94e-05,2]
[314992228,1708717916102,139.74497027,6.94e-05,2]
[314992230,1708717975276,4017.66218591,0.00015,14]
[314992231,1708718029356,-1960.25502973,0.0002313,2]
[314992232,1708718034052,75.74497027,0.00023,2]
[314992233,1708718034072,10.25502973,0.00023,2]
[314992234,1708718034092,150.0,0.00023,2]
[314992235,1708718034113,150.0,0.00023,2]
[314992236,1708718034138,150.0,0.00023,2]
[314992237,1708718034159,150.0,0.00023,2]
[314992238,1708718034187,1217281.3817148,0.00023,2]
[314992239,1708718034215,23688.90109845,0.00023,2]
[314992240,1708718034236,1866351.0704121,0.00023,2]
[314992245,1708718634628,-754.72,0.00023179,2]
[314992247,1708718834662,150.1927387,0.00023156,2]
[314992260,1708719021172,811.19,0.00022039,2]
[314992263,1708719031537,-150.0,0.00023739,2]
[314992264,1708719031547,-478.42,0.00023921,2]
[314992265,1708719031559,-932.42,0.00023921,2]
[314992266,1708719031568,-117.26453788,0.00023961,2]
[314992267,1708719031579,-1030.78743666,0.00023961,2]
[314992268,1708719031764,-2808.34041629,0.00023961,2]
[314992269,1708719031776,-278.60878409,0.00023961,2]
[314992270,1708719031788,-1402.25005701,0.00023961,2]
[314992271,1708719031799,-764.36761815,0.00023961,2]
[314992272,1708719031813,-417.80075498,0.00023961,2]
[314992274,1708719031826,-3604.28039494,0.00023961,2]
[314992275,1708719031835,-7152.95,0.00024042,2]
[314992276,1708719031845,-179.77,0.00024083,2]
[314992277,1708719031855,-923.17,0.00024083,2]
[314992278,1708719031866,-150.0,0.00024101,2]
[314992279,1708719031875,-300.0,0.00024101,2]
[314992280,1708719031884,-920.0,0.00024102,2]
[314992281,1708719031893,-500.0,0.00024115,2]
[314992282,1708719031902,-3249.67,0.00024132,2]
[314992283,1708719031912,-200.0,0.00024144,2]
[314992284,1708719031924,-11900.0,0.00024156,2]
[314992285,1708719031933,-2705.0,0.00024166,2]
[314992286,1708719031943,-150.01097118,0.0002425,2]
[314992287,1708719031952,-150.0,0.00024287,2]
[314992288,1708719031964,-811.19,0.00024303,2]
[314992289,1708719031976,-1217.75,0.00024384,2]
[314992290,1708719031986,-150.99,0.00024402,2]
[314992291,1708719031996,-2000.0,0.00024601,2]
[314992292,1708719032005,-155.32,0.00024603,2]
[314992293,1708719032015,-500.0,0.00024633,2]
[314992294,1708719032024,-1908.4,0.00024643,2]
[314992295,1708719032033,-250.0,0.00024658,2]
[314992296,1708719032042,-5503.25,0.00024739,2]
[314992297,1708719032051,-158.05909155,0.00024754,2]
[314992298,1708719032060,-150.0,0.00024835,2]
[314992299,1708719032070,-563.13,0.00024853,2]
[314992300,1708719032079,-150.99,0.00024853,2]
[314992301,1708719032089,-499.99,0.00024853,2]
[314992302,1708719032098,-6586.39,0.00024853,2]
[314992303,1708719032109,-12360.53327799,0.00024854,2]
[314992304,1708719032251,-11539.46672201,0.00024854,2]
[314992305,1708719032261,-250.0,0.00024876,2]
[314992306,1708719032270,-567.23,0.00024876,2]
[314992307,1708719032279,-750.0,0.00024884,2]
[314992308,1708719032289,-167.01,0.00024907,2]
[314992309,1708719032298,-1000.0,0.00024924,2]
[314992310,1708719032308,-158.05909155,0.00024942,2]
[314992311,1708719032317,-4608.39,0.00024975,2]
[314992312,1708719032326,-1000.0,0.00024993,2]
[314992313,1708719032336,-179.77,0.00024996,2]
[314992314,1708719032345,-481.16434129,0.00025,2]
[314992315,1708719032354,-750.0,0.00025,3]
[314992316,1708719032363,-1000.0,0.00025061,2]
[314992317,1708719032372,-1000.0,0.00025129,2]
[314992318,1708719032382,-158.05909155,0.0002513,2]
[314992319,1708719032392,-150.0,0.00025146,2]
[314992320,1708719032401,-1000.0,0.00025198,2]
[314992321,1708719032411,-1000.0,0.00025266,2]
[314992322,1708719032421,-158.05909155,0.00025317,2]
[314992323,1708719032430,-1000.0,0.00025335,2]
[314992324,1708719032439,-26087.71363932,0.00025335,2]
[314992325,1708719032448,-189.91261092,0.00025343,2]
[314992326,1708719032458,-150.0,0.00025383,2]
[314992327,1708719032468,-232.4155345,0.00025398,2]
[314992328,1708719032477,-1000.0,0.00025403,2]
[314992329,1708719032487,-169.7628148,0.00025417,2]
[314992330,1708719032497,-192380.5488711,0.00025427,2]
[314992331,1708719037669,-279.76414625,0.00025243,2]
[314992332,1708719037679,-279.76414623,0.00025294,2]
[314992333,1708719037689,-279.76414623,0.00025345,2]
[314992334,1708719037699,-286999.4511289,0.00025427,2]
[314992335,1708719037709,-200.0,0.00025446,2]
[314992336,1708719037718,-1191.31,0.00025463,2]
[314992337,1708719037728,-1000.0,0.00025471,2]
[314992338,1708719037737,-158.05909155,0.00025505,2]
[314992339,1708719037746,-1000.0,0.0002554,2]
[314992340,1708719037756,-1000.0,0.00025608,2]
[314992341,1708719037765,-1000.0,0.00025676,2]
[314992342,1708719037774,-158.05909155,0.00025693,2]
[314992343,1708719037784,-1000.0,0.00025745,2]
[314992344,1708719037793,-3249.67,0.00025776,2]
[314992345,1708719037802,-1000.0,0.00025813,2]
[314992346,1708719037811,-158.05909155,0.00025881,2]
[314992347,1708719037821,-1000.0,0.00025881,2]
[314992348,1708719037830,-179.77,0.00025909,2]
[314992349,1708719037839,-150.0,0.00025931,2]
[314992350,1708719037848,-1000.0,0.0002595,2]
[314992351,1708719037857,-1000.0,0.00026018,2]
[314992352,1708719037867,-158.05909155,0.00026069,2]
[314992353,1708719037876,-150.0,0.00026079,2]
[314992354,1708719037885,-1000.0,0.00026086,2]
[314992355,1708719037895,-1000.0,0.00026155,2]
[314992356,1708719037904,-1000.0,0.00026223,2]
[314992357,1708719037914,-158.05909155,0.00026256,2]
[314992358,1708719037927,-300.0,0.00026287,2]
[314992359,1708719037936,-158.53,0.0002638,2]
[314992360,1708719037945,-914.93,0.00026441,2]
[314992361,1708719037954,-158.05909155,0.00026444,2]
[314992362,1708719037967,-189.91261092,0.00026457,2]
[314992363,1708719037977,-2803.16789009,0.00026469,2]
[314992364,1708719037986,-150.0,0.00026479,2]
[314992365,1708719037996,-210.0,0.00026511,2]
[314992366,1708719038007,-811.19,0.00026567,2]
[314992367,1708719038018,-914.93,0.0002658,2]
[314992368,1708719038028,-158.05909155,0.00026632,2]
[314992369,1708719038038,-914.93,0.00026719,2]
[314992370,1708719038047,-17042.69633287,0.00026798,2]
[314992371,1708719038058,-5746.9958932,0.00026798,2]
[314992372,1708719038068,-158.05909155,0.0002682,2]
[314992373,1708719038077,-179.77,0.00026823,2]
[314992374,1708719038086,-17042.69633286,0.00026842,2]
[314992375,1708719038096,-5746.99589315,0.00026842,2]
[314992376,1708719038105,-914.93,0.00026859,2]
[314992377,1708719038114,-165.97,0.00026899,2]
[314992378,1708719038124,-177.74,0.000269,2]
[314992379,1708719038133,-914.93,0.00026998,2]
[314992380,1708719038142,-283.15675107,0.00027,2]
[314992381,1708719038152,-800.0,0.00027,3]
[314992382,1708719038161,-158.05909155,0.00027008,2]
[314992383,1708719038170,-150.0,0.00027027,2]
[314992384,1708719038180,-155.32,0.00027064,2]
[314992385,1708719038189,-15804.76464364,0.0002707,2]
[314992386,1708719038198,-920.0,0.00027115,2]
[314992387,1708719038207,-914.93,0.00027137,2]
[314992388,1708719038217,-215.11931397,0.00027159,2]
[314992389,1708719038228,-373.33054131,0.00027179,2]
[314992390,1708719038238,-156.28325337,0.00027179,2]
[314992391,1708719038247,-174.47637452,0.00027179,2]
[314992392,1708719038256,-324.02274923,0.00027179,2]
[314992393,1708719038266,-138942.5852,0.0002718,2]
[314992394,1708719038275,-5000.0,0.0002718,2]
[314992395,1708719038284,-464.40480896,0.0002718,2]
[314992396,1708719038295,-5929.9481023,0.0002718,2]
[314992397,1708719038304,-158.05909155,0.00027195,2]
[314992398,1708719038318,-215.11931397,0.00027238,2]
[314992399,1708719038328,-914.93,0.00027276,2]
[314992400,1708719038338,-798169.067736,0.0002728,3]
[314992401,1708719038348,-158.53,0.00027313,2]
[314992402,1708719038358,-158.05909155,0.00027383,2]
[314992403,1708719038368,-500.0,0.00027397,2]
[314992404,1708719038378,-500.0,0.00027397,2]
[314992405,1708719038388,-500.0,0.00027397,2]
[314992406,1708719038397,-500.0,0.00027397,2]
[314992407,1708719038407,-500.0,0.00027397,2]
[314992408,1708719038417,-500.0,0.00027397,2]
[314992409,1708719038426,-526.39630966,0.00027397,2]
[314992410,1708719038436,-500.0,0.00027397,2]
[314992411,1708719038445,-500.0,0.00027397,2]
[314992412,1708719038455,-500.0,0.00027397,2]
[314992413,1708719038464,-500.0,0.00027397,2]
[314992414,1708719038474,-500.0,0.00027397,2]
[314992415,1708719038483,-500.0,0.00027397,2]
[314992416,1708719038493,-500.0,0.00027397,2]
[314992417,1708719038503,-500.0,0.00027397,2]
[314992418,1708719038512,-500.0,0.00027397,2]
[314992419,1708719038521,-500.0,0.00027397,2]
[314992420,1708719038531,-500.0,0.00027397,2]
[314992421,1708719038540,-520.30378695,0.00027397,2]
[314992422,1708719038550,-500.0,0.00027397,2]
[314992423,1708719038559,-500.0,0.00027397,2]
[314992424,1708719038569,-500.0,0.00027397,2]
[314992425,1708719038579,-500.0,0.00027397,2]
[314992426,1708719038589,-500.0,0.00027397,2]
[314992427,1708719038598,-500.0,0.00027397,2]
[314992428,1708719038608,-500.0,0.00027397,2]
[314992429,1708719038617,-500.0,0.00027397,2]
[314992430,1708719038626,-500.0,0.00027397,2]
[314992431,1708719038636,-500.0,0.00027397,2]
[314992432,1708719038645,-500.0,0.00027397,2]
[314992433,1708719038654,-500.0,0.00027397,2]
[314992434,1708719038664,-500.0,0.00027397,2]
[314992435,1708719038673,-500.0,0.00027397,2]
[314992436,1708719038682,-500.0,0.00027397,2]
[314992437,1708719038692,-500.0,0.00027397,2]
[314992438,1708719038701,-500.0,0.00027397,2]
[314992439,1708719038710,-500.0,0.00027397,2]
[314992440,1708719038719,-500.0,0.00027397,2]
[314992441,1708719038730,-500.0,0.00027397,2]